bitfinex-derivatives/quotes_BTCF0:USTF0_20260207
["timestamp","ask_amount","ask_price","bid_price","bid_amount"]
[1770434783041,0.57792564,70924.0,70882.0,0.55424677]
[1770434783539,0.57792564,70924.0,70886.0,0.54012977]
[1770434784440,0.57792564,70924.0,70887.0,0.014116]
[1770434784643,0.57792564,70924.0,70888.0,0.54012977]
[1770434788340,0.57792564,70924.0,70891.0,0.54012977]
[1770434788736,0.57792564,70924.0,70893.0,0.54012977]
[1770434800240,0.57792564,70924.0,70895.0,0.54877515]
[1770434803448,0.0002,70936.0,70897.0,0.54877515]
[1770434803647,0.0002,70936.0,70923.0,0.54877515]
[1770434803849,0.06232,71007.0,70923.0,0.54877515]
[1770434803850,0.5228598,70954.0,70923.0,0.54877515]
[1770434804246,0.5228598,70954.0,70927.0,0.54877515]
[1770434805756,0.5228598,70954.0,70916.0,0.54877515]
[1770434806548,0.5230598,70954.0,70916.0,0.54877515]
[1770434806746,0.0002,70954.0,70923.0,0.54877515]
[1770434807252,0.0002,70954.0,70928.0,0.54877515]
[1770434807749,0.5228598,70962.0,70928.0,0.54877515]
[1770434807953,0.0002,70967.0,70928.0,0.54877515]
[1770434808144,0.0002,70967.0,70939.0,0.54877515]
[1770434808349,0.5230598,70977.0,70942.0,0.54877515]
[1770434808657,0.0002,70968.0,70942.0,0.54877515]
[1770434809051,0.0002,70977.0,70947.0,0.54877515]
[1770434809253,0.13972775,71020.0,70952.0,0.54877515]
[1770434809254,0.5228598,70993.0,70952.0,0.54877515]
[1770434809556,0.5228598,71001.0,70952.0,0.54877515]
[1770434809757,0.0002,70980.0,70952.0,0.54877515]
[1770434809951,0.5228598,70981.0,70952.0,0.29449515]
[1770434810151,0.0002,70982.0,70952.0,0.29449515]
[1770434810346,0.5230598,70982.0,70952.0,0.29449515]
[1770434811152,0.0002,70974.0,70952.0,0.29449515]
[1770434811358,0.5230598,70974.0,70952.0,0.29449515]
[1770434811560,0.5230598,70974.0,70929.0,0.54877515]
[1770434812063,0.5230598,70974.0,70921.0,0.54877515]
[1770434812261,0.5228598,70962.0,70921.0,0.54877515]
[1770434812758,0.5228598,70959.0,70912.0,0.54877515]
[1770434813554,0.5228598,70954.0,70912.0,0.54877515]
[1770434814354,0.0002,70955.0,70912.0,0.54877515]
[1770434814560,0.0002,70955.0,70898.0,0.12535513]
[1770434814561,0.5228598,70963.0,70924.0,0.54877515]
[1770434814760,0.0002,70961.0,70932.0,0.54877515]
[1770434815061,0.0002,70961.0,70940.0,0.54877515]
[1770434815359,0.0002,70973.0,70940.0,0.54877515]
[1770434815555,0.5200598,70979.0,70940.0,0.54877515]
[1770434815953,0.5200598,70979.0,70942.0,0.54877515]
[1770434816853,0.5228598,70972.0,70942.0,0.54877515]
[1770434817363,0.5228598,70972.0,70925.0,0.54877515]
[1770434818063,0.0002,70973.0,70925.0,0.54877515]
[1770434818064,0.5228598,70969.0,70925.0,0.54877515]
[1770434818460,0.5228598,70963.0,70925.0,0.54877515]
[1770434819758,0.5228598,70960.0,70925.0,0.54877515]
[1770434820258,0.5228598,70959.0,70925.0,0.54877515]
[1770434821262,0.5228598,70959.0,70908.0,0.54877515]
[1770434821462,0.5228598,70959.0,70910.0,0.54877515]
[1770434821659,0.5228598,70959.0,70912.0,0.54877515]
[1770434821860,0.5228598,70959.0,70895.0,0.17123583]
[1770434821861,0.5228598,70980.0,70922.0,0.54877515]
[1770434822059,0.5228598,70980.0,70946.0,0.54877515]
[1770434822266,0.0002,70979.0,70946.0,0.54877515]
[1770434822466,0.5228598,70989.0,70946.0,0.54877515]
[1770434822764,0.5228598,70989.0,70930.0,0.54877515]
[1770434823765,0.5228598,70976.0,70930.0,0.54877515]
[1770434824066,0.0002,70955.0,70930.0,0.54877515]
[1770434824267,0.5228598,70966.0,70930.0,0.54877515]
[1770434825156,0.5228598,70966.0,70930.0,0.56288215]
[1770434825863,0.0002,70968.0,70920.0,0.25009279]
[1770434825864,0.0002,70968.0,70933.0,0.50516303]
[1770434826066,0.51024231,70976.0,70933.0,0.50516303]
[1770434826364,0.51024231,70976.0,70920.0,0.13944421]
[1770434826365,0.51024231,70976.0,70935.0,0.50516303]
[1770434826567,0.51024231,70976.0,70941.0,0.50516303]
[1770434827262,0.0002,70975.0,70941.0,0.50516303]
[1770434827463,0.0002,70975.0,70944.0,0.50516303]
[1770434828461,0.0002,70975.0,70930.0,0.014107]
[1770434828462,0.0002,70987.0,70951.0,0.47950252]
[1770434829360,0.51195934,70987.0,70951.0,0.47950252]
[1770434829566,0.51175934,70980.0,70951.0,0.47950252]
[1770434830669,0.0002,70979.0,70951.0,0.47950252]
[1770434831671,0.51175934,70988.0,70951.0,0.47950252]
[1770434832271,0.51175934,70988.0,70955.0,0.47950252]
[1770434832565,0.0002,70989.0,70955.0,0.47950252]
[1770434832869,0.51195934,70996.0,70955.0,0.47950252]
[1770434833966,0.0002,70986.0,70955.0,0.47950252]
[1770434834370,0.51195934,70986.0,70955.0,0.47950252]
[1770434835159,0.0002,70983.0,70955.0,0.47950252]
[1770434836165,0.0002,70992.0,70956.0,0.014102]
[1770434836464,0.0002,70992.0,70959.0,0.47950252]
[1770434836667,0.0002,70992.0,70969.0,0.47950252]
[1770434837373,0.51175934,70997.0,70969.0,0.47950252]
[1770434838561,0.0002,70991.0,70969.0,0.47950252]
[1770434838765,0.51175934,71006.0,70969.0,0.47950252]
[1770434838969,0.0002,70999.0,70969.0,0.47950252]
[1770434839664,0.0002,71005.0,70969.0,0.47950252]
[1770434840773,0.51175934,71006.0,70969.0,0.47950252]
[1770434841972,0.0002,70997.0,70969.0,0.47950252]
[1770434842171,0.51195934,70997.0,70969.0,0.47950252]
[1770434842972,0.0002,70993.0,70969.0,0.47950252]
[1770434843168,0.51195934,70993.0,70958.0,0.47950252]
[1770434844176,0.51175934,70987.0,70958.0,0.47950252]
[1770434844672,0.0002,70988.0,70958.0,0.47950252]
[1770434845269,0.51175934,70996.0,70958.0,0.47950252]
[1770434846378,0.51175934,70996.0,70946.0,0.47950252]
[1770434846576,0.0002,70972.0,70946.0,0.47950252]
[1770434847771,0.51175934,70984.0,70946.0,0.47950252]
[1770434848778,0.51175934,70984.0,70939.0,0.12475458]
[1770434848779,0.51175934,70984.0,70948.0,0.47950252]
[1770434848978,0.0002,70981.0,70948.0,0.47950252]
[1770434850178,0.51175934,70984.0,70948.0,0.47950252]
[1770434851177,0.0002,70981.0,70949.0,0.014104]
[1770434851477,0.0002,70981.0,70951.0,0.014103]
[1770434851780,0.0002,70981.0,70952.0,0.47950252]
[1770434852266,0.51195934,70992.0,70952.0,0.47950252]
[1770434853376,0.0002,70985.0,70952.0,0.47950252]
[1770434853880,0.51175934,70983.0,70948.0,0.11064858]
[1770434854080,0.51175934,70983.0,70944.0,0.47950252]
[1770434854676,0.51175934,70978.0,70944.0,0.47950252]
[1770434855683,0.51175934,70976.0,70944.0,0.47950252]
[1770434856179,0.51175934,70976.0,70941.0,0.46475129]
[1770434856474,0.51175934,70976.0,70941.0,0.57539987]
[1770434856681,0.51195934,70976.0,70941.0,0.57539987]
[1770434857280,0.0002,70976.0,70946.0,0.46475129]
[1770434857780,0.44233608,70985.0,70946.0,0.46475129]
[1770434858981,0.44233608,70980.0,70946.0,0.46475129]
[1770434860175,0.0002,70979.0,70946.0,0.46475129]
[1770434860582,0.44253608,70979.0,70946.0,0.46475129]
[1770434861086,0.44253608,70979.0,70938.0,0.46475129]
[1770434861277,0.44233608,70975.0,70938.0,0.46475129]
[1770434862381,0.44253608,70975.0,70938.0,0.46475129]
[1770434865482,0.44253608,70975.0,70925.0,0.46475129]
[1770434865787,0.44233608,70969.0,70925.0,0.46475129]
[1770434866781,0.44233608,70967.0,70925.0,0.46475129]
[1770434867792,0.0002,70968.0,70931.0,0.46475129]
[1770434867980,0.44233608,70975.0,70937.0,0.46475129]
[1770434868180,0.44233608,70975.0,70941.0,0.46475129]
[1770434868591,0.0002,70963.0,70941.0,0.46475129]
[1770434868890,0.44233608,70968.0,70941.0,0.46475129]
[1770434871189,0.44233608,70968.0,70933.0,0.46475129]
[1770434877488,0.44253608,70971.0,70938.0,0.46475129]
[1770434878095,0.44233608,70971.0,70938.0,0.46475129]
[1770434883199,0.0002,70959.0,70938.0,0.46475129]
[1770434884495,0.0002,70959.0,70938.0,0.47885729]
[1770434887396,0.0002,70959.0,70938.0,0.46475129]
[1770434887602,0.41372182,70965.0,70938.0,0.46475129]
[1770434889099,0.41372182,70965.0,70931.0,0.54161158]
[1770434889306,0.41372182,70965.0,70931.0,0.43007686]
[1770434889802,0.41372182,70965.0,70932.0,0.43007686]
[1770434892805,0.41372182,70965.0,70935.0,0.43007686]
[1770434895610,0.41372182,70965.0,70935.0,0.44418286]
[1770434895806,0.0002,70971.0,70935.0,0.44418286]
[1770434896007,0.43949389,70971.0,70935.0,0.44418286]
[1770434896706,0.43949389,70971.0,70936.0,0.43007686]
[1770434897007,0.43929389,70971.0,70936.0,0.43007686]
[1770434903810,0.43929389,70971.0,70940.0,0.43007686]
[1770434904122,0.0002,70958.0,70940.0,0.43007686]
[1770434904607,0.0002,70958.0,70941.0,0.014105]
[1770434904812,0.0002,70958.0,70942.0,0.43007686]
[1770434905510,0.43929389,70965.0,70935.0,0.54661158]
[1770434905811,0.43929389,70965.0,70935.0,0.43507686]
[1770434906006,0.43929389,70965.0,70935.0,0.43007686]
[1770434907917,0.43929389,70965.0,70928.0,0.43007686]
[1770434908608,0.43929389,70965.0,70933.0,0.005]
[1770434909212,0.43929389,70959.0,70933.0,0.005]
[1770434909416,0.43949389,70959.0,70933.0,0.005]
[1770434909617,0.43949389,70959.0,70933.0,0.43507686]
[1770434910114,0.43949389,70959.0,70933.0,0.43007686]
[1770434910615,0.43929389,70959.0,70933.0,0.43007686]
[1770434913518,0.43929389,70959.0,70927.0,0.005]
[1770434913719,0.0002,70968.0,70932.0,0.43007686]
[1770434913720,0.43949389,70968.0,70932.0,0.43007686]
[1770434914312,0.43929389,70968.0,70932.0,0.43007686]
[1770434921935,0.0002,70946.0,70927.0,0.005]
[1770434922128,0.40440197,70966.0,70928.0,0.014108]
[1770434922328,0.40440197,70963.0,70929.0,0.41498962]
[1770434929629,0.40440197,70963.0,70930.0,0.014107]
[1770434929828,0.40440197,70949.0,70920.0,0.41498962]
[1770434930039,0.40440197,70949.0,70909.0,0.20805604]
[1770434930040,0.40440197,70949.0,70910.0,0.41498962]
[1770434931733,0.40440197,70949.0,70896.0,0.41498962]
[1770434931934,0.40440197,70949.0,70900.0,0.41498962]
[1770434932130,0.40440197,70939.0,70900.0,0.41498962]
[1770434933641,0.13952653,70940.0,70913.0,0.41498962]
[1770434934331,0.13952653,70940.0,70913.0,0.31498962]
[1770434935537,0.40440197,70939.0,70913.0,0.31498962]
[1770434935738,0.13952653,70940.0,70913.0,0.31498962]
[1770434936738,0.40440197,70939.0,70913.0,0.31498962]
[1770434940946,0.0002,70959.0,70917.0,0.41498962]
[1770434941148,0.40440197,70958.0,70921.0,0.41498962]
[1770434941340,0.40440197,70958.0,70925.0,0.41498962]
[1770434943752,0.40440197,70958.0,70929.0,0.41498962]
[1770434945645,0.38575147,70969.0,70931.0,0.38028466]
[1770434946548,0.38575147,70969.0,70933.0,0.38028466]
[1770434946850,0.38595147,70977.0,70941.0,0.38028466]
[1770434947050,0.38575147,70977.0,70943.0,0.38028466]
[1770434947448,0.38575147,70977.0,70945.0,0.38028466]
[1770434947756,0.38575147,70989.0,70954.0,0.38028466]
[1770434949458,0.38575147,70989.0,70947.0,0.37835493]
[1770434950156,0.38575147,70989.0,70939.0,0.37835493]
[1770434950350,0.40343215,70986.0,70939.0,0.37835493]
[1770434950755,0.40343215,70969.0,70939.0,0.37835493]
[1770434951056,0.40343215,70969.0,70930.0,0.37835493]
[1770434953751,0.40343215,70969.0,70932.0,0.37835493]
[1770434953959,0.40343215,70969.0,70934.0,0.37835493]
[1770434958755,0.40343215,70969.0,70919.0,0.37835493]
[1770434962658,0.40343215,70949.0,70919.0,0.37835493]
[1770434963064,0.40343215,70965.0,70919.0,0.37835493]
[1770434963465,0.40343215,70965.0,70934.0,0.37835493]
[1770434964866,0.13941627,70970.0,70939.0,0.37835493]
[1770434965169,0.40343215,70972.0,70941.0,0.37835493]
[1770434965371,0.40343215,70985.0,70941.0,0.37835493]
[1770434965566,0.40343215,70985.0,70943.0,0.37835493]
[1770434966468,0.40343215,70985.0,70945.0,0.37835493]
[1770434968060,0.40343215,70985.0,70947.0,0.37835493]
[1770434968462,0.40343215,70984.0,70947.0,0.37835493]
[1770434970569,0.40343215,70982.0,70947.0,0.37835493]
[1770434970965,0.40343215,70982.0,70952.0,0.37835493]
[1770434980273,0.40343215,70982.0,70955.0,0.39676642]
[1770434983879,0.40343215,70982.0,70948.0,0.39676642]
[1770434984379,0.40343215,70982.0,70948.0,0.41087042]
[1770434984984,0.40343215,70982.0,70948.0,0.39676642]
[1770434993487,0.40343215,70982.0,70948.0,0.41087042]
[1770434994285,0.40343215,70982.0,70948.0,0.39676642]
[1770434994685,0.40343215,70982.0,70948.0,0.41087042]
[1770434997589,0.40343215,70982.0,70951.0,0.39676642]
[1770435000281,0.40343215,70982.0,70944.0,0.11120054]
[1770435000589,0.41300458,70969.0,70932.0,0.39676642]
[1770435001094,0.41300458,70969.0,70925.0,0.39676642]
[1770435001280,0.13934638,70950.0,70925.0,0.39676642]
[1770435001486,0.41300458,70949.0,70918.0,0.39676642]
[1770435005392,0.13952531,70940.0,70904.0,0.39676642]
[1770435005598,0.41300458,70939.0,70904.0,0.39676642]
[1770435006490,0.41300458,70939.0,70889.0,0.3939704]
[1770435007296,0.0002,70952.0,70889.0,0.3939704]
[1770435007297,0.38696699,70919.0,70889.0,0.3939704]
[1770435008392,0.38696699,70919.0,70872.0,0.3939704]
[1770435008988,0.13952531,70900.0,70872.0,0.3939704]
[1770435009189,0.38405322,70899.0,70852.0,0.40190497]
[1770435009793,0.38405322,70899.0,70852.0,0.41602797]
[1770435009990,0.38405322,70907.0,70865.0,0.40190497]
[1770435011000,0.38405322,70907.0,70872.0,0.40190497]
[1770435011993,0.38405322,70907.0,70853.0,0.014123]
[1770435011994,0.38405322,70914.0,70877.0,0.40190497]
[1770435012798,0.0002,70934.0,70870.0,0.40190497]
[1770435012799,0.38405322,70899.0,70870.0,0.40190497]
[1770435013295,0.38405322,70899.0,70862.0,0.40190497]
[1770435015292,0.38405322,70899.0,70842.0,0.40190497]
[1770435016396,0.38405322,70899.0,70847.0,0.40190497]
[1770435016604,0.38405322,70899.0,70851.0,0.40190497]
[1770435017205,0.38405322,70899.0,70857.0,0.40190497]
[1770435017600,0.0002,70930.0,70899.0,0.40190497]
[1770435018096,0.0002,70930.0,70878.0,0.014118]
[1770435018097,0.0002,70930.0,70903.0,0.40190497]
[1770435018706,0.38405322,70934.0,70903.0,0.40190497]
[1770435024407,0.38405322,70934.0,70903.0,0.41601797]
[1770435024612,0.38405322,70934.0,70903.0,0.40190497]
[1770435027604,0.38405322,70934.0,70882.0,0.40190497]
[1770435028608,0.0002,70958.0,70882.0,0.40190497]
[1770435028609,0.38405322,70929.0,70882.0,0.40190497]
[1770435033215,0.38405322,70929.0,70873.0,0.40190497]
[1770435033408,0.38405322,70924.0,70873.0,0.26046497]
[1770435033915,0.38405322,70923.0,70873.0,0.26046497]
[1770435034311,0.38405322,70922.0,70873.0,0.26046497]
[1770435035912,0.38405322,70922.0,70848.0,0.014124]
[1770435035913,0.38405322,70922.0,70876.0,0.38563848]
[1770435037223,0.38405322,70922.0,70878.0,0.38563848]
[1770435039022,0.38405322,70922.0,70881.0,0.38563848]
[1770435039426,0.38405322,70922.0,70887.0,0.38563848]
[1770435041626,0.39316206,70929.0,70887.0,0.38563848]
[1770435041824,0.39316206,70929.0,70873.0,0.005]
[1770435041825,0.39316206,70929.0,70891.0,0.38563848]
[1770435042419,0.39316206,70929.0,70891.0,0.39975348]
[1770435042622,0.39316206,70929.0,70891.0,0.38563848]
[1770435048127,0.39316206,70928.0,70891.0,0.38563848]
[1770435050830,0.39316206,70928.0,70881.0,0.005]
[1770435050831,0.39316206,70928.0,70882.0,0.38563848]
[1770435051028,0.39316206,70928.0,70881.0,0.005]
[1770435051233,0.39316206,70919.0,70875.0,0.38563848]
[1770435052038,0.39316206,70919.0,70867.0,0.005]
[1770435052039,0.39316206,70917.0,70868.0,0.38563848]
[1770435052828,0.39316206,70915.0,70868.0,0.38563848]
[1770435053229,0.39316206,70914.0,70868.0,0.38563848]
[1770435053836,0.39316206,70909.0,70868.0,0.38563848]
[1770435054228,0.39316206,70909.0,70875.0,0.005]
[1770435054638,0.39316206,70909.0,70872.0,0.005]
[1770435055340,0.39316206,70909.0,70859.0,0.24917848]
[1770435055734,0.39316206,70907.0,70859.0,0.24917848]
[1770435056035,0.39316206,70906.0,70859.0,0.24917848]
[1770435056440,0.39316206,70905.0,70859.0,0.24917848]
[1770435057744,0.39316206,70899.0,70859.0,0.24917848]
[1770435058637,0.39316206,70892.0,70859.0,0.24917848]
[1770435059434,0.39316206,70891.0,70859.0,0.24917848]
[1770435060136,0.42295569,70893.0,70859.0,0.24917848]
[1770435060539,0.39316206,70899.0,70861.0,0.38563848]
[1770435060842,0.56355733,70903.0,70865.0,0.38563848]
[1770435061040,0.39316206,70905.0,70865.0,0.38563848]
[1770435061344,0.39316206,70903.0,70867.0,0.38563848]
[1770435061639,0.42295569,70904.0,70873.0,0.38563848]
[1770435061837,0.39316206,70912.0,70873.0,0.38563848]
[1770435066942,0.41907842,70911.0,70873.0,0.38563848]
[1770435069740,0.42295569,70920.0,70862.0,0.40592947]
[1770435069741,0.43549892,70909.0,70862.0,0.40592947]
[1770435069946,0.43549892,70908.0,70862.0,0.40592947]
[1770435070345,0.43549892,70900.0,70862.0,0.40592947]
[1770435070739,0.43549892,70899.0,70862.0,0.40592947]
[1770435071842,0.43549892,70898.0,70854.0,0.40592947]
[1770435072341,0.43549892,70895.0,70854.0,0.40592947]
[1770435072738,0.43549892,70889.0,70847.0,0.40592947]
[1770435073135,0.43549892,70888.0,70847.0,0.40592947]
[1770435082951,0.43549892,70888.0,70853.0,0.40592947]
[1770435083147,0.43549892,70894.0,70853.0,0.40592947]
[1770435083352,0.43549892,70894.0,70857.0,0.40592947]
[1770435085753,0.43549892,70909.0,70860.0,0.40592947]
[1770435086058,0.43549892,70917.0,70870.0,0.40592947]
[1770435086360,0.43549892,70917.0,70874.0,0.40592947]
[1770435086945,0.43549892,70917.0,70881.0,0.40592947]
[1770435087153,0.43549892,70917.0,70883.0,0.40592947]
[1770435089258,0.43549892,70917.0,70861.0,0.014121]
[1770435089259,0.43549892,70931.0,70887.0,0.40592947]
[1770435089556,0.0002,70945.0,70910.0,0.40592947]
[1770435089956,0.43549892,70950.0,70910.0,0.40592947]
[1770435090156,0.43549892,70950.0,70910.0,0.42004047]
[1770435090360,0.43549892,70950.0,70910.0,0.40592947]
[1770435090563,0.43549892,70950.0,70912.0,0.40592947]
[1770435093159,0.43549892,70950.0,70894.0,0.014115]
[1770435093160,0.43569892,70967.0,70927.0,0.40592947]
[1770435093462,0.43549892,70967.0,70927.0,0.40592947]
[1770435093664,0.43549892,70967.0,70929.0,0.40592947]
[1770435094257,0.43549892,70989.0,70939.0,0.40592947]
[1770435097361,0.43549892,70989.0,70931.0,0.44113838]
[1770435097863,0.41855541,70987.0,70931.0,0.44113838]
[1770435098267,0.41855541,70969.0,70923.0,0.44113838]
[1770435098761,0.41855541,70969.0,70923.0,0.43542838]
[1770435099158,0.41855541,70969.0,70923.0,0.29972838]
[1770435099661,0.41855541,70969.0,70906.0,0.44113838]
[1770435101365,0.42295569,70971.0,70906.0,0.44113838]
[1770435101366,0.41855541,70949.0,70906.0,0.44113838]
[1770435101962,0.41855541,70949.0,70883.0,0.014117]
[1770435102166,0.41855541,70949.0,70884.0,0.44113838]
[1770435103270,0.41855541,70929.0,70884.0,0.44113838]
[1770435104968,0.41855541,70929.0,70867.0,0.44113838]
[1770435105468,0.41855541,70941.0,70897.0,0.44113838]
[1770435108872,0.41855541,70939.0,70888.0,0.44113838]
[1770435109070,0.41855541,70936.0,70888.0,0.44113838]
[1770435111674,0.41855541,70935.0,70888.0,0.44113838]
[1770435112078,0.41855541,70931.0,70888.0,0.44113838]
[1770435112376,0.8415111,70931.0,70888.0,0.44113838]
[1770435112576,0.41855541,70930.0,70888.0,0.44113838]
[1770435113275,0.41855541,70929.0,70888.0,0.44113838]
[1770435114772,0.42295569,70927.0,70888.0,0.44113838]
[1770435115078,0.41855541,70926.0,70888.0,0.44113838]
[1770435116177,0.41855541,70925.0,70888.0,0.44113838]
[1770435117882,0.41855541,70925.0,70890.0,0.44113838]
[1770435118383,0.41855541,70939.0,70890.0,0.44113838]
[1770435118583,0.41855541,70939.0,70893.0,0.44113838]
[1770435119684,0.41855541,70939.0,70895.0,0.44113838]
[1770435121380,0.41855541,70939.0,70871.0,0.44113838]
[1770435121574,0.41855541,70939.0,70873.0,0.44113838]
[1770435121779,0.41855541,70934.0,70873.0,0.44113838]
[1770435122287,0.41855541,70933.0,70873.0,0.44113838]
[1770435122478,0.41855541,70933.0,70884.0,0.44113838]
[1770435122886,0.41855541,70933.0,70887.0,0.44113838]
[1770435123587,0.41855541,70933.0,70889.0,0.44113838]
[1770435123879,0.41855541,70933.0,70891.0,0.44113838]
[1770435129390,0.41767158,70930.0,70891.0,0.44113838]
[1770435129994,0.41767158,70927.0,70882.0,0.4493232]
[1770435130289,0.41767158,70920.0,70882.0,0.4493232]
[1770435132196,0.84062727,70920.0,70882.0,0.4493232]
[1770435132391,0.41767158,70919.0,70882.0,0.4493232]
[1770435137194,0.41767158,70919.0,70877.0,0.005]
[1770435137498,0.41767158,70915.0,70865.0,0.4493232]
[1770435137900,0.41767158,70907.0,70865.0,0.3488732]
[1770435138401,0.13957008,70920.0,70844.0,0.014125]
[1770435138402,0.41767158,70904.0,70844.0,0.014125]
[1770435138608,0.41767158,70899.0,70845.0,0.4493232]
[1770435145908,0.41767158,70897.0,70845.0,0.4493232]
[1770435150415,0.41767158,70897.0,70845.0,0.4634472]
[1770435151316,0.41767158,70897.0,70853.0,0.4493232]
[1770435151514,0.41767158,70897.0,70855.0,0.4493232]
[1770435152009,0.42295569,70913.0,70860.0,0.014121]
[1770435152214,0.41767158,70912.0,70868.0,0.4493232]
[1770435154114,0.41767158,70912.0,70873.0,0.4493232]
[1770435154315,0.41767158,70912.0,70856.0,0.014122]
[1770435154316,0.41767158,70920.0,70877.0,0.4493232]
[1770435155222,0.41767158,70920.0,70879.0,0.4493232]
[1770435155820,0.41767158,70920.0,70881.0,0.44951488]
[1770435156022,0.46666031,70928.0,70883.0,0.44951488]
[1770435156516,0.46666031,70928.0,70885.0,0.44951488]
[1770435157822,0.42295569,70927.0,70885.0,0.44951488]
[1770435158123,0.46666031,70926.0,70885.0,0.44951488]
[1770435158516,0.889616,70926.0,70885.0,0.44951488]
[1770435158721,0.46666031,70925.0,70885.0,0.44951488]
[1770435159318,0.46666031,70919.0,70875.0,0.44951488]
[1770435159624,0.46666031,70916.0,70875.0,0.44951488]
[1770435159828,0.46666031,70909.0,70875.0,0.44951488]
[1770435160424,0.46666031,70906.0,70875.0,0.44951488]
[1770435160619,0.46666031,70903.0,70875.0,0.30807488]
[1770435160820,0.46666031,70903.0,70875.0,0.00607488]
[1770435161022,0.46666031,70902.0,70875.0,0.00607488]
[1770435161426,0.889616,70902.0,70875.0,0.00607488]
[1770435161624,0.46666031,70901.0,70875.0,0.00607488]
[1770435162924,0.46666031,70901.0,70853.0,0.44951488]
[1770435163219,0.46666031,70898.0,70853.0,0.41130488]
[1770435163418,0.46666031,70896.0,70853.0,0.41130488]
[1770435163620,0.46666031,70896.0,70853.0,0.30803488]
[1770435163820,0.42295569,70895.0,70853.0,0.30803488]
[1770435164021,0.46666031,70894.0,70853.0,0.30803488]
[1770435164725,0.46666031,70893.0,70853.0,0.30803488]
[1770435166220,0.42295569,70894.0,70855.0,0.36834788]
[1770435166426,0.46666031,70893.0,70855.0,0.36834788]
[1770435166827,0.46666031,70892.0,70855.0,0.36834788]
[1770435173932,0.42295569,70907.0,70839.0,0.12445091]
[1770435173933,0.46666031,70906.0,70872.0,0.37171479]
[1770435177932,0.46666031,70906.0,70858.0,0.014122]
[1770435178231,0.46666031,70906.0,70860.0,0.014121]
[1770435178437,0.46666031,70906.0,70861.0,0.372576]
[1770435179337,0.42295569,70905.0,70861.0,0.372576]
[1770435179536,0.46666031,70904.0,70861.0,0.372576]
[1770435180638,0.46666031,70901.0,70861.0,0.372576]
[1770435181136,0.46666031,70899.0,70861.0,0.372576]
[1770435181331,0.46666031,70898.0,70861.0,0.372576]
[1770435181737,0.46666031,70897.0,70861.0,0.372576]
[1770435185329,0.46666031,70897.0,70863.0,0.37252204]
[1770435186641,0.46666031,70897.0,70866.0,0.37517935]
[1770435186842,0.46166031,70897.0,70866.0,0.37517935]
[1770435187344,0.45666031,70897.0,70866.0,0.37517935]
[1770435187936,0.45166031,70897.0,70866.0,0.37517935]
[1770435188336,0.45166031,70897.0,70849.0,0.39150281]
[1770435188840,0.44666031,70897.0,70851.0,0.39218715]
[1770435189038,0.13957008,70890.0,70842.0,0.11051342]
[1770435189338,0.44732545,70889.0,70845.0,0.39167739]
[1770435189540,0.44732545,70883.0,70845.0,0.25583739]
[1770435189736,0.44732545,70883.0,70878.0,0.00133]
[1770435189939,0.44732545,70883.0,70853.0,0.25654473]
[1770435196734,0.44732545,70883.0,70837.0,0.26219801]
[1770435197348,0.44732545,70883.0,70839.0,0.26245931]
[1770435197546,0.44732545,70883.0,70841.0,0.26486838]
[1770435198049,0.44732545,70880.0,70841.0,0.26486838]
[1770435199548,0.44732545,70879.0,70841.0,0.26486838]
[1770435199936,0.44732545,70877.0,70841.0,0.26486838]
[1770435201944,0.44732545,70879.0,70845.0,0.28118757]
[1770435202747,0.44732545,70877.0,70845.0,0.28118757]
[1770435206155,0.44732545,70876.0,70845.0,0.28118757]
[1770435216972,0.44732545,70876.0,70839.0,0.32137753]
[1770435223873,0.48182399,70875.0,70839.0,0.32137753]
[1770435227580,0.42295569,70874.0,70839.0,0.32137753]
[1770435227779,0.48182399,70873.0,70839.0,0.32137753]
[1770435230280,0.48182399,70873.0,70839.0,0.33550353]
[1770435231574,0.48182399,70873.0,70839.0,0.32137753]
[1770435233278,0.48282399,70873.0,70839.0,0.32137753]
[1770435233476,0.48282399,70873.0,70843.0,0.35332609]
[1770435233682,0.48282399,70873.0,70845.0,0.35332609]
[1770435233882,0.48182399,70873.0,70845.0,0.35332609]
[1770435234185,0.48282399,70873.0,70845.0,0.35332609]
[1770435235980,0.48182399,70873.0,70845.0,0.35332609]
[1770435236180,0.48282399,70873.0,70845.0,0.35332609]
[1770435236384,0.48282399,70873.0,70847.0,0.3533515]
[1770435237989,0.001,70873.0,70852.0,0.35764074]
[1770435238176,0.90477968,70891.0,70859.0,0.35764074]
[1770435238483,0.48182399,70890.0,70859.0,0.35764074]
[1770435239281,0.001,70873.0,70859.0,0.35764074]
[1770435239484,0.48182399,70890.0,70859.0,0.35764074]
[1770435240288,0.48282399,70890.0,70859.0,0.35764074]
[1770435241984,0.48282399,70890.0,70863.0,0.42064661]
[1770435242382,0.48182399,70890.0,70863.0,0.42064661]
[1770435242582,0.48282399,70890.0,70863.0,0.42064661]
[1770435243178,0.48182399,70890.0,70863.0,0.42064661]
[1770435244091,0.48282399,70890.0,70863.0,0.42064661]
[1770435245792,0.48182399,70890.0,70863.0,0.42064661]
[1770435246090,0.48282399,70890.0,70863.0,0.42064661]
[1770435247896,0.50681093,70889.0,70863.0,0.42064661]
[1770435248891,0.42295569,70891.0,70863.0,0.42064661]
[1770435248892,0.001,70890.0,70863.0,0.42064661]
[1770435249295,0.001,70890.0,70871.0,0.41562194]
[1770435249498,0.48408222,70898.0,70871.0,0.41562194]
[1770435249695,0.48508222,70889.0,70863.0,0.41687131]
[1770435250398,0.48408222,70889.0,70863.0,0.41687131]
[1770435250897,0.48408222,70889.0,70863.0,0.43099231]
[1770435251195,0.48408222,70896.0,70867.0,0.41606921]
[1770435251598,0.48408222,70896.0,70869.0,0.41728883]
[1770435252693,0.001,70889.0,70869.0,0.41728883]
[1770435253291,0.48408222,70896.0,70869.0,0.41728883]
[1770435253490,0.48508222,70896.0,70869.0,0.41728883]
[1770435254196,0.48408222,70896.0,70869.0,0.41728883]
[1770435255893,0.48508222,70896.0,70869.0,0.41728883]
[1770435256298,0.48508222,70896.0,70863.0,0.42555996]
[1770435256496,0.48408222,70896.0,70863.0,0.42555996]
[1770435256696,0.48408222,70893.0,70857.0,0.42670817]
[1770435257089,0.42295569,70893.0,70861.0,0.42686481]
[1770435257294,0.48408222,70892.0,70861.0,0.42686481]
[1770435257994,0.48408222,70892.0,70864.0,0.42853209]
[1770435258303,0.48408222,70892.0,70867.0,0.42853209]
[1770435259601,0.48508222,70892.0,70867.0,0.42853209]
[1770435260202,0.48408222,70892.0,70856.0,0.42494433]
[1770435260890,0.48508222,70892.0,70856.0,0.42494433]
[1770435261491,0.48508222,70892.0,70856.0,0.40655433]
[1770435262295,0.48508222,70892.0,70856.0,0.34714433]
[1770435263493,0.48408222,70892.0,70856.0,0.34714433]
[1770435263696,0.48508222,70892.0,70856.0,0.34714433]
[1770435264097,0.48508222,70892.0,70856.0,0.36126633]
[1770435264299,0.48508222,70892.0,70856.0,0.34714433]
[1770435264692,0.48508222,70892.0,70857.0,0.014122]
[1770435264899,0.48508222,70892.0,70858.0,0.34174343]